[Event "Titled Tuesday Blitz December 27 Late 2022"]
[White "Melikyan, Gnel"]
[Black "Cappai, Davide"]
[WhiteFideId "54109990"]
[BlackFideId "813338"]
[WhiteElo "2238"]
[BlackElo "2140"]
[Result "1-0"]
[Round "04"]
[TimeControl "180+2"]
[Date "2022.12.27"]
[WhiteClock "0:00:25"]
[BlackClock "0:00:26"]

1. d4 {[%clk 0:02:57]}  g6 {[%clk 0:03:00]} 2. c4 {[%clk 0:02:57]}  Bg7 {[%clk 0:03:00]} 3. Nc3 {[%clk 0:02:58]}  c5 {[%clk 0:03:01]} 4. dxc5 {[%clk 0:02:58]}  Bxc3+ {[%clk 0:03:01]} 5. bxc3 {[%clk 0:02:58]}  Qa5 {[%clk 0:03:01]} 6. Qb3 {[%clk 0:02:58]}  Nc6 {[%clk 0:02:59]} 7. Ba3 {[%clk 0:02:54]}  Nf6 {[%clk 0:02:57]} 8. Bb4 {[%clk 0:02:46]}  Qc7 {[%clk 0:02:56]} 9. Nf3 {[%clk 0:02:46]}  O-O {[%clk 0:02:56]} 10. e3 {[%clk 0:02:46]}  a5 {[%clk 0:02:56]} 11. Ba3 {[%clk 0:02:46]}  a4 {[%clk 0:02:54]} 12. Qb6 {[%clk 0:02:45]}  Qb8 {[%clk 0:02:52]} 13. Be2 {[%clk 0:02:44]}  Ra6 {[%clk 0:02:52]} 14. Qb2 {[%clk 0:02:44]}  e5 {[%clk 0:02:42]} 15. O-O {[%clk 0:02:32]}  e4 {[%clk 0:02:43]} 16. Nd4 {[%clk 0:02:32]}  Ne5 {[%clk 0:02:36]} 17. h3 {[%clk 0:02:22]}  Re8 {[%clk 0:02:15]} 18. Rfd1 {[%clk 0:02:08]}  Nc6 {[%clk 0:01:35]} 19. Nb5 {[%clk 0:02:05]}  Qe5 {[%clk 0:01:34]} 20. Nd6 {[%clk 0:02:02]}  Rf8 {[%clk 0:01:30]} 21. Nxc8 {[%clk 0:02:01]}  Rxc8 {[%clk 0:01:31]} 22. Qxb7 {[%clk 0:02:01]}  Rca8 {[%clk 0:01:08]} 23. Qb2 {[%clk 0:01:40]}  Qg5 {[%clk 0:01:08]} 24. Bb4 {[%clk 0:01:22]}  Ne5 {[%clk 0:01:07]} 25. Rd4 {[%clk 0:01:16]}  h5 {[%clk 0:01:01]} 26. Kh1 {[%clk 0:01:04]}  Re8 {[%clk 0:01:01]} 27. Qd2 {[%clk 0:01:02]}  Rae6 {[%clk 0:01:00]} 28. Rg1 {[%clk 0:00:57]}  Qh4 {[%clk 0:01:00]} 29. Bf1 {[%clk 0:00:45]}  Neg4 {[%clk 0:01:00]} 30. g3 {[%clk 0:00:43]}  Qg5 {[%clk 0:00:59]} 31. hxg4 {[%clk 0:00:38]}  hxg4 {[%clk 0:00:59]} 32. Kg2 {[%clk 0:00:37]}  Kg7 {[%clk 0:00:57]} 33. Rh1 {[%clk 0:00:37]}  Qf5 {[%clk 0:00:56]} 34. Be2 {[%clk 0:00:35]}  Nh7 {[%clk 0:00:54]} 35. Rd5 {[%clk 0:00:34]}  Re5 {[%clk 0:00:54]} 36. c6 {[%clk 0:00:31]}  dxc6 {[%clk 0:00:48]} 37. Rxe5 {[%clk 0:00:31]}  Rxe5 {[%clk 0:00:43]} 38. Bd6 {[%clk 0:00:31]}  Re6 {[%clk 0:00:38]} 39. Qd4+ {[%clk 0:00:31]}  Nf6 {[%clk 0:00:36]} 40. c5 {[%clk 0:00:31]}  g5 {[%clk 0:00:35]} 41. Bc4 {[%clk 0:00:30]}  Qf3+ {[%clk 0:00:34]} 42. Kg1 {[%clk 0:00:31]}  Qg2+ {[%clk 0:00:24]} 43. Kxg2 {[%clk 0:00:30]}  Kg8 {[%clk 0:00:24]} 44. Bxe6 {[%clk 0:00:27]}  Kg7 {[%clk 0:00:25]} 45. Qxf6+ {[%clk 0:00:26]}  Kg8 {[%clk 0:00:26]} 46. Qxg5# {[%clk 0:00:25]} 1-0


[Site "https://www.chess.com"]

[Event "Titled Tuesday Blitz December 27 Late 2022"]
[White "Melkumyan, Hrant"]
[Black "Bryakin, Mikhail"]
[WhiteFideId "13302485"]
[BlackFideId "4165314"]
[WhiteElo "2645"]
[BlackElo "2455"]
[Result "1/2-1/2"]
[Round "04"]
[TimeControl "180+2"]
[Date "2022.12.27"]
[WhiteClock "0:00:04"]
[BlackClock "0:00:05"]

1. d4 {[%clk 0:03:00]}  d6 {[%clk 0:02:54]} 2. Nf3 {[%clk 0:02:59]}  e5 {[%clk 0:02:52]} 3. dxe5 {[%clk 0:02:59]}  Bg4 {[%clk 0:02:51]} 4. h3 {[%clk 0:02:54]}  Bxf3 {[%clk 0:02:49]} 5. exf3 {[%clk 0:02:55]}  dxe5 {[%clk 0:02:49]} 6. Qxd8+ {[%clk 0:02:54]}  Kxd8 {[%clk 0:02:50]} 7. Bc4 {[%clk 0:02:54]}  f6 {[%clk 0:02:48]} 8. f4 {[%clk 0:02:49]}  Bd6 {[%clk 0:02:44]} 9. fxe5 {[%clk 0:02:44]}  Bxe5 {[%clk 0:02:44]} 10. Nd2 {[%clk 0:02:45]}  Nd7 {[%clk 0:02:38]} 11. Nf3 {[%clk 0:02:45]}  Ne7 {[%clk 0:02:37]} 12. Nxe5 {[%clk 0:02:41]}  Nxe5 {[%clk 0:02:37]} 13. Bb3 {[%clk 0:02:42]}  c6 {[%clk 0:02:33]} 14. Be3 {[%clk 0:02:36]}  Kc7 {[%clk 0:02:28]} 15. O-O-O {[%clk 0:02:36]}  Rhd8 {[%clk 0:02:23]} 16. Rde1 {[%clk 0:02:22]}  a5 {[%clk 0:02:14]} 17. a4 {[%clk 0:02:22]}  Nd5 {[%clk 0:02:02]} 18. f4 {[%clk 0:02:07]}  Nxe3 {[%clk 0:01:50]} 19. Rxe3 {[%clk 0:02:08]}  Ng6 {[%clk 0:01:50]} 20. g3 {[%clk 0:02:04]}  Re8 {[%clk 0:01:45]} 21. Rhe1 {[%clk 0:02:01]}  Rxe3 {[%clk 0:01:44]} 22. Rxe3 {[%clk 0:02:02]}  Kd6 {[%clk 0:01:36]} 23. h4 {[%clk 0:01:43]}  h6 {[%clk 0:01:36]} 24. Bc4 {[%clk 0:01:35]}  Rd8 {[%clk 0:01:34]} 25. c3 {[%clk 0:01:27]}  Ne7 {[%clk 0:01:27]} 26. Re6+ {[%clk 0:01:20]}  Kd7 {[%clk 0:01:27]} 27. Re1 {[%clk 0:01:21]}  Kd6 {[%clk 0:01:22]} 28. h5 {[%clk 0:01:16]}  Nd5 {[%clk 0:01:10]} 29. Bxd5 {[%clk 0:01:14]}  cxd5 {[%clk 0:01:09]} 30. Kc2 {[%clk 0:01:14]}  Rb8 {[%clk 0:01:04]} 31. f5 {[%clk 0:01:06]}  b5 {[%clk 0:00:49]} 32. Re6+ {[%clk 0:01:05]}  Kc5 {[%clk 0:00:50]} 33. Re7 {[%clk 0:01:02]}  bxa4 {[%clk 0:00:41]} 34. Rxg7 {[%clk 0:01:02]}  Re8 {[%clk 0:00:41]} 35. Kd3 {[%clk 0:00:40]}  Rb8 {[%clk 0:00:39]} 36. Kc2 {[%clk 0:00:37]}  Re8 {[%clk 0:00:39]} 37. Rc7+ {[%clk 0:00:33]}  Kd6 {[%clk 0:00:19]} 38. Rf7 {[%clk 0:00:31]}  Ke5 {[%clk 0:00:19]} 39. Ra7 {[%clk 0:00:23]}  Rg8 {[%clk 0:00:17]} 40. Rxa5 {[%clk 0:00:24]}  Rxg3 {[%clk 0:00:16]} 41. c4 {[%clk 0:00:24]}  Kxf5 {[%clk 0:00:12]} 42. Rxd5+ {[%clk 0:00:23]}  Ke4 {[%clk 0:00:10]} 43. Rd8 {[%clk 0:00:18]}  Rg2+ {[%clk 0:00:07]} 44. Kc3 {[%clk 0:00:18]}  Rg3+ {[%clk 0:00:08]} 45. Kb4 {[%clk 0:00:16]}  Rb3+ {[%clk 0:00:07]} 46. Kxa4 {[%clk 0:00:17]}  Rxb2 {[%clk 0:00:08]} 47. c5 {[%clk 0:00:18]}  f5 {[%clk 0:00:07]} 48. c6 {[%clk 0:00:18]}  Rc2 {[%clk 0:00:08]} 49. Kb5 {[%clk 0:00:18]}  f4 {[%clk 0:00:08]} 50. Rd6 {[%clk 0:00:11]}  Kf5 {[%clk 0:00:03]} 51. Rxh6 {[%clk 0:00:10]}  Kg5 {[%clk 0:00:03]} 52. Rh8 {[%clk 0:00:10]}  f3 {[%clk 0:00:03]} 53. h6 {[%clk 0:00:07]}  f2 {[%clk 0:00:03]} 54. Rf8 {[%clk 0:00:07]}  Kxh6 {[%clk 0:00:03]} 55. Kb6 {[%clk 0:00:08]}  Kg5 {[%clk 0:00:01]} 56. c7 {[%clk 0:00:08]}  Rb2+ {[%clk 0:00:02]} 57. Ka6 {[%clk 0:00:07]}  Ra2+ {[%clk 0:00:02]} 58. Kb7 {[%clk 0:00:07]}  Rb2+ {[%clk 0:00:03]} 59. Kc6 {[%clk 0:00:08]}  Rc2+ {[%clk 0:00:03]} 60. Kd6 {[%clk 0:00:08]}  Rd2+ {[%clk 0:00:03]} 61. Ke6 {[%clk 0:00:08]}  Re2+ {[%clk 0:00:04]} 62. Kd7 {[%clk 0:00:04]}  Rd2+ {[%clk 0:00:04]} 63. Ke7 {[%clk 0:00:04]}  Re2+ {[%clk 0:00:04]} 64. Kd8 {[%clk 0:00:05]}  Rd2+ {[%clk 0:00:04]} 65. Ke8 {[%clk 0:00:03]}  Re2+ {[%clk 0:00:05]} 66. Kd7 {[%clk 0:00:04]}  Rd2+ {[%clk 0:00:05]} 67. Ke6 {[%clk 0:00:02]}  Re2+ {[%clk 0:00:05]} 68. Kd5 {[%clk 0:00:02]}  Rc2 {[%clk 0:00:04]} 69. Kd6 {[%clk 0:00:02]}  Rd2+ {[%clk 0:00:05]} 70. Kc5 {[%clk 0:00:02]}  Rc2+ {[%clk 0:00:05]} 71. Kb6 {[%clk 0:00:03]}  Rb2+ {[%clk 0:00:05]} 72. Ka5 {[%clk 0:00:03]}  Rc2 {[%clk 0:00:05]} 73. Kb6 {[%clk 0:00:04]} 1/2-1/2


[Site "https://www.chess.com"]

[Event "Titled Tuesday Blitz December 27 Late 2022"]
[White "Moral Garcia, Serafin"]
[Black "Rustemov, Alexander"]
[WhiteFideId "2201925"]
[BlackFideId "4119002"]
[WhiteElo "2238"]
[BlackElo "2525"]
[Result "0-1"]
[Round "04"]
[TimeControl "180+2"]
[Date "2022.12.27"]
[WhiteClock "0:00:09"]
[BlackClock "0:00:16"]

1. Nf3 {[%clk 0:03:00]}  d5 {[%clk 0:02:55]} 2. b3 {[%clk 0:02:43]}  Nf6 {[%clk 0:02:54]} 3. Bb2 {[%clk 0:02:43]}  Bf5 {[%clk 0:02:54]} 4. Nh4 {[%clk 0:02:41]}  Bd7 {[%clk 0:02:48]} 5. e3 {[%clk 0:02:38]}  c5 {[%clk 0:02:47]} 6. c4 {[%clk 0:02:37]}  e6 {[%clk 0:02:43]} 7. Be2 {[%clk 0:02:34]}  Be7 {[%clk 0:02:43]} 8. O-O {[%clk 0:02:33]}  O-O {[%clk 0:02:42]} 9. Nf3 {[%clk 0:02:30]}  Nc6 {[%clk 0:02:40]} 10. cxd5 {[%clk 0:02:26]}  Nxd5 {[%clk 0:02:37]} 11. Nc3 {[%clk 0:02:26]}  Bf6 {[%clk 0:02:23]} 12. Qc2 {[%clk 0:02:26]}  Ndb4 {[%clk 0:02:20]} 13. Qb1 {[%clk 0:02:25]}  Qe7 {[%clk 0:02:20]} 14. Ne4 {[%clk 0:02:19]}  Bxb2 {[%clk 0:02:19]} 15. Qxb2 {[%clk 0:02:19]}  b6 {[%clk 0:02:17]} 16. a3 {[%clk 0:02:13]}  Nd5 {[%clk 0:02:16]} 17. d4 {[%clk 0:02:13]}  cxd4 {[%clk 0:02:15]} 18. Nxd4 {[%clk 0:02:12]}  Nxd4 {[%clk 0:02:08]} 19. Qxd4 {[%clk 0:02:12]}  Rfc8 {[%clk 0:02:07]} 20. Bc4 {[%clk 0:02:04]}  Bc6 {[%clk 0:02:03]} 21. b4 {[%clk 0:01:57]}  e5 {[%clk 0:01:55]} 22. Qd3 {[%clk 0:01:55]}  Nf6 {[%clk 0:01:46]} 23. Nxf6+ {[%clk 0:01:52]}  Qxf6 {[%clk 0:01:47]} 24. Rac1 {[%clk 0:01:42]}  Rd8 {[%clk 0:01:42]} 25. Qe2 {[%clk 0:01:37]}  Rd6 {[%clk 0:01:40]} 26. Rfd1 {[%clk 0:01:34]}  Rad8 {[%clk 0:01:40]} 27. Rxd6 {[%clk 0:01:31]}  Qxd6 {[%clk 0:01:39]} 28. Bb3 {[%clk 0:01:18]}  g6 {[%clk 0:01:26]} 29. Rd1 {[%clk 0:01:07]}  Qe7 {[%clk 0:01:25]} 30. Rxd8+ {[%clk 0:00:59]}  Qxd8 {[%clk 0:01:26]} 31. Qc4 {[%clk 0:00:54]}  Qd7 {[%clk 0:01:14]} 32. h4 {[%clk 0:00:36]}  Kg7 {[%clk 0:01:10]} 33. f3 {[%clk 0:00:34]}  Bb5 {[%clk 0:01:04]} 34. Qd5 {[%clk 0:00:31]}  Qxd5 {[%clk 0:01:03]} 35. Bxd5 {[%clk 0:00:31]}  f6 {[%clk 0:01:01]} 36. Kf2 {[%clk 0:00:31]}  Kf8 {[%clk 0:01:01]} 37. f4 {[%clk 0:00:29]}  Ke7 {[%clk 0:00:57]} 38. g4 {[%clk 0:00:28]}  h6 {[%clk 0:00:51]} 39. Kg3 {[%clk 0:00:26]}  g5 {[%clk 0:00:49]} 40. hxg5 {[%clk 0:00:21]}  hxg5 {[%clk 0:00:46]} 41. fxg5 {[%clk 0:00:21]}  fxg5 {[%clk 0:00:46]} 42. Kf3 {[%clk 0:00:21]}  Kd6 {[%clk 0:00:46]} 43. e4 {[%clk 0:00:21]}  Ba4 {[%clk 0:00:43]} 44. Kg3 {[%clk 0:00:18]}  Bd1 {[%clk 0:00:43]} 45. Kh3 {[%clk 0:00:19]}  Kc7 {[%clk 0:00:38]} 46. Kg3 {[%clk 0:00:18]}  Be2 {[%clk 0:00:36]} 47. Be6 {[%clk 0:00:14]}  Kc6 {[%clk 0:00:33]} 48. Kf2 {[%clk 0:00:14]}  Bd1 {[%clk 0:00:29]} 49. Ke3 {[%clk 0:00:12]}  Kb5 {[%clk 0:00:29]} 50. Kd2 {[%clk 0:00:09]}  Bf3 {[%clk 0:00:29]} 51. Ke3 {[%clk 0:00:08]}  Bg2 {[%clk 0:00:26]} 52. Bb3 {[%clk 0:00:08]}  Bh3 {[%clk 0:00:23]} 53. Kf3 {[%clk 0:00:08]}  a5 {[%clk 0:00:19]} 54. bxa5 {[%clk 0:00:08]}  bxa5 {[%clk 0:00:18]} 55. Kg3 {[%clk 0:00:09]}  Bf1 {[%clk 0:00:17]} 56. Kf3 {[%clk 0:00:09]}  Bc4 {[%clk 0:00:18]} 57. Bc2 {[%clk 0:00:09]}  Kc5 {[%clk 0:00:17]} 58. Ke3 {[%clk 0:00:10]}  Be6 {[%clk 0:00:17]} 59. Bd3 {[%clk 0:00:09]}  Bxg4 {[%clk 0:00:17]} 60. Bc2 {[%clk 0:00:08]}  Kc4 {[%clk 0:00:16]} 61. Kf2 {[%clk 0:00:09]}  Kc3 {[%clk 0:00:16]} 0-1


[Site "https://www.chess.com"]

[Event "Titled Tuesday Blitz December 27 Late 2022"]
[White "Movahed, Sina"]
[Black "Subelj, Jan"]
[WhiteFideId "42520835"]
[BlackFideId "14618583"]
[WhiteElo "2340"]
[BlackElo "2513"]
[Result "1-0"]
[Round "04"]
[TimeControl "180+2"]
[Date "2022.12.27"]
[WhiteClock "0:00:33"]
[BlackClock "0:00:04"]

1. Nf3 {[%clk 0:03:00]}  d6 {[%clk 0:02:56]} 2. g3 {[%clk 0:02:59]}  e5 {[%clk 0:02:56]} 3. Bg2 {[%clk 0:02:58]}  Nf6 {[%clk 0:02:54]} 4. O-O {[%clk 0:02:58]}  g6 {[%clk 0:02:52]} 5. d4 {[%clk 0:02:58]}  Nbd7 {[%clk 0:02:50]} 6. Nbd2 {[%clk 0:02:48]}  e4 {[%clk 0:02:43]} 7. Ne1 {[%clk 0:02:45]}  d5 {[%clk 0:02:41]} 8. c4 {[%clk 0:02:33]}  c6 {[%clk 0:02:39]} 9. b3 {[%clk 0:02:33]}  Bg7 {[%clk 0:02:35]} 10. Ba3 {[%clk 0:02:33]}  Bf8 {[%clk 0:02:21]} 11. Bxf8 {[%clk 0:02:26]}  Kxf8 {[%clk 0:02:21]} 12. b4 {[%clk 0:02:18]}  Qb6 {[%clk 0:02:15]} 13. Nc2 {[%clk 0:02:16]}  Kg7 {[%clk 0:02:13]} 14. b5 {[%clk 0:02:16]}  Re8 {[%clk 0:01:57]} 15. Rb1 {[%clk 0:02:15]}  Qc7 {[%clk 0:01:43]} 16. Qc1 {[%clk 0:02:06]}  cxb5 {[%clk 0:01:28]} 17. cxd5 {[%clk 0:02:04]}  a6 {[%clk 0:01:21]} 18. Ne3 {[%clk 0:01:48]}  Qxc1 {[%clk 0:01:19]} 19. Rfxc1 {[%clk 0:01:49]}  Nb6 {[%clk 0:01:18]} 20. d6 {[%clk 0:01:49]}  Be6 {[%clk 0:01:14]} 21. Nxe4 {[%clk 0:01:37]}  Nxe4 {[%clk 0:01:13]} 22. Bxe4 {[%clk 0:01:38]}  Bxa2 {[%clk 0:01:13]} 23. Bxb7 {[%clk 0:01:38]}  Bxb1 {[%clk 0:01:03]} 24. Bxa8 {[%clk 0:01:36]}  Rxa8 {[%clk 0:01:01]} 25. Rxb1 {[%clk 0:01:35]}  Rd8 {[%clk 0:01:01]} 26. Ra1 {[%clk 0:01:35]}  Na4 {[%clk 0:01:01]} 27. Nc4 {[%clk 0:01:33]}  Nc3 {[%clk 0:00:59]} 28. Ne5 {[%clk 0:01:21]}  Rxd6 {[%clk 0:00:46]} 29. e3 {[%clk 0:01:21]}  b4 {[%clk 0:00:46]} 30. Nd3 {[%clk 0:01:16]}  Rb6 {[%clk 0:00:43]} 31. Kf1 {[%clk 0:01:15]}  b3 {[%clk 0:00:35]} 32. Nb2 {[%clk 0:01:14]}  Ne4 {[%clk 0:00:19]} 33. Rc1 {[%clk 0:01:02]}  a5 {[%clk 0:00:17]} 34. Ke2 {[%clk 0:00:58]}  a4 {[%clk 0:00:13]} 35. Nxa4 {[%clk 0:00:55]}  b2 {[%clk 0:00:12]} 36. Rb1 {[%clk 0:00:54]}  Rb4 {[%clk 0:00:11]} 37. f3 {[%clk 0:00:54]}  Nd6 {[%clk 0:00:05]} 38. Nc5 {[%clk 0:00:45]}  Nc4 {[%clk 0:00:04]} 39. Nd3 {[%clk 0:00:43]}  Rb3 {[%clk 0:00:04]} 40. e4 {[%clk 0:00:40]}  f6 {[%clk 0:00:04]} 41. d5 {[%clk 0:00:38]}  Kf7 {[%clk 0:00:04]} 42. d6 {[%clk 0:00:34]}  Ke6 {[%clk 0:00:04]} 43. Nc5+ {[%clk 0:00:33]} 1-0


[Site "https://www.chess.com"]

[Event "Titled Tuesday Blitz December 27 Late 2022"]
[White "Msellek, Ilyass"]
[Black "Salman, Pavel"]
[WhiteFideId "675938"]
[BlackFideId "24153753"]
[WhiteElo "2420"]
[BlackElo "2287"]
[Result "1-0"]
[Round "04"]
[TimeControl "180+2"]
[Date "2022.12.27"]
[WhiteClock "0:00:09"]
[BlackClock "0:00:10"]

1. d4 {[%clk 0:03:00]}  Nf6 {[%clk 0:02:59]} 2. Nf3 {[%clk 0:03:01]}  c5 {[%clk 0:02:59]} 3. e3 {[%clk 0:03:01]}  cxd4 {[%clk 0:02:58]} 4. exd4 {[%clk 0:03:01]}  b6 {[%clk 0:02:58]} 5. c3 {[%clk 0:03:00]}  Bb7 {[%clk 0:02:59]} 6. Bd3 {[%clk 0:03:01]}  e6 {[%clk 0:02:59]} 7. O-O {[%clk 0:03:02]}  Be7 {[%clk 0:03:00]} 8. Nbd2 {[%clk 0:03:02]}  O-O {[%clk 0:03:00]} 9. Qe2 {[%clk 0:03:01]}  d6 {[%clk 0:03:00]} 10. a4 {[%clk 0:03:01]}  Re8 {[%clk 0:03:00]} 11. Re1 {[%clk 0:02:56]}  Bf8 {[%clk 0:03:00]} 12. Ne4 {[%clk 0:02:47]}  Nxe4 {[%clk 0:03:00]} 13. Bxe4 {[%clk 0:02:48]}  Bxe4 {[%clk 0:03:00]} 14. Qxe4 {[%clk 0:02:49]}  d5 {[%clk 0:03:01]} 15. Qg4 {[%clk 0:02:48]}  Nc6 {[%clk 0:02:58]} 16. Bf4 {[%clk 0:02:42]}  Rc8 {[%clk 0:02:54]} 17. Re3 {[%clk 0:02:36]}  Na5 {[%clk 0:02:44]} 18. Ne5 {[%clk 0:02:18]}  Nc4 {[%clk 0:02:38]} 19. Nxc4 {[%clk 0:02:16]}  Rxc4 {[%clk 0:02:31]} 20. h4 {[%clk 0:02:13]}  Bd6 {[%clk 0:01:41]} 21. Bh6 {[%clk 0:02:09]}  g6 {[%clk 0:01:26]} 22. Rae1 {[%clk 0:01:35]}  Rxa4 {[%clk 0:01:13]} 23. h5 {[%clk 0:01:34]}  Bf8 {[%clk 0:00:46]} 24. Bg5 {[%clk 0:01:30]}  Be7 {[%clk 0:00:45]} 25. Bh6 {[%clk 0:01:29]}  Bf8 {[%clk 0:00:45]} 26. Bg5 {[%clk 0:01:22]}  Be7 {[%clk 0:00:45]} 27. Rxe6 {[%clk 0:01:09]}  fxe6 {[%clk 0:00:13]} 28. Qxe6+ {[%clk 0:01:10]}  Kh8 {[%clk 0:00:13]} 29. Qe5+ {[%clk 0:01:05]}  Kg8 {[%clk 0:00:13]} 30. Qe6+ {[%clk 0:00:27]}  Kh8 {[%clk 0:00:12]} 31. h6 {[%clk 0:00:24]}  Ra1 {[%clk 0:00:09]} 32. Qe5+ {[%clk 0:00:20]}  Bf6 {[%clk 0:00:07]} 33. Qxf6+ {[%clk 0:00:07]}  Qxf6 {[%clk 0:00:07]} 34. Bxf6+ {[%clk 0:00:08]}  Kg8 {[%clk 0:00:07]} 35. Rxa1 {[%clk 0:00:08]}  Kf7 {[%clk 0:00:07]} 36. Be5 {[%clk 0:00:08]}  Re7 {[%clk 0:00:08]} 37. g4 {[%clk 0:00:07]}  g5 {[%clk 0:00:08]} 38. Kg2 {[%clk 0:00:07]}  Kg6 {[%clk 0:00:08]} 39. Rh1 {[%clk 0:00:06]}  a5 {[%clk 0:00:08]} 40. f4 {[%clk 0:00:04]}  Rf7 {[%clk 0:00:09]} 41. Kf3 {[%clk 0:00:05]}  gxf4 {[%clk 0:00:09]} 42. Bxf4 {[%clk 0:00:06]}  b5 {[%clk 0:00:10]} 43. Rh5 {[%clk 0:00:06]}  a4 {[%clk 0:00:10]} 44. Rg5+ {[%clk 0:00:07]}  Kxh6 {[%clk 0:00:10]} 45. Rg8+ {[%clk 0:00:07]}  Rxf4+ {[%clk 0:00:09]} 46. Kxf4 {[%clk 0:00:08]}  b4 {[%clk 0:00:09]} 47. g5+ {[%clk 0:00:08]}  Kh5 {[%clk 0:00:10]} 48. Rg7 {[%clk 0:00:09]}  a3 {[%clk 0:00:09]} 49. bxa3 {[%clk 0:00:09]}  bxa3 {[%clk 0:00:09]} 50. Ra7 {[%clk 0:00:09]}  Kg6 {[%clk 0:00:10]} 51. Rxa3 {[%clk 0:00:09]} 1-0


[Site "https://www.chess.com"]

[Event "Titled Tuesday Blitz December 27 Late 2022"]
[White "Novikova, Galina"]
[Black "Harish, Neeraj"]
[WhiteFideId "4157095"]
[BlackFideId "30958130"]
[WhiteElo "2073"]
[BlackElo "2232"]
[Result "1-0"]
[Round "04"]
[TimeControl "180+2"]
[Date "2022.12.27"]
[WhiteClock "0:00:15"]
[BlackClock "0:00:01"]

1. e4 {[%clk 0:03:00]}  c5 {[%clk 0:02:59]} 2. Nf3 {[%clk 0:03:00]}  Nc6 {[%clk 0:02:57]} 3. d4 {[%clk 0:03:01]}  cxd4 {[%clk 0:02:58]} 4. Nxd4 {[%clk 0:03:02]}  Nf6 {[%clk 0:02:58]} 5. Nc3 {[%clk 0:03:02]}  e5 {[%clk 0:02:58]} 6. Ndb5 {[%clk 0:03:02]}  d6 {[%clk 0:02:58]} 7. Bg5 {[%clk 0:03:02]}  a6 {[%clk 0:02:58]} 8. Na3 {[%clk 0:03:03]}  b5 {[%clk 0:02:58]} 9. Bxf6 {[%clk 0:03:03]}  gxf6 {[%clk 0:02:58]} 10. Nd5 {[%clk 0:03:04]}  f5 {[%clk 0:02:58]} 11. g3 {[%clk 0:03:04]}  fxe4 {[%clk 0:02:57]} 12. Bg2 {[%clk 0:03:05]}  Be6 {[%clk 0:02:57]} 13. c3 {[%clk 0:03:04]}  Bg7 {[%clk 0:02:56]} 14. Nc2 {[%clk 0:03:03]}  O-O {[%clk 0:02:52]} 15. Bxe4 {[%clk 0:03:02]}  Rc8 {[%clk 0:02:40]} 16. O-O {[%clk 0:02:46]}  f5 {[%clk 0:02:38]} 17. Bg2 {[%clk 0:02:47]}  Ne7 {[%clk 0:02:35]} 18. Ncb4 {[%clk 0:02:41]}  a5 {[%clk 0:02:29]} 19. Nxe7+ {[%clk 0:02:40]}  Qxe7 {[%clk 0:02:30]} 20. Nd5 {[%clk 0:02:41]}  Qf7 {[%clk 0:02:30]} 21. Qd2 {[%clk 0:02:33]}  f4 {[%clk 0:02:18]} 22. Be4 {[%clk 0:02:28]}  f3 {[%clk 0:02:10]} 23. Qd3 {[%clk 0:02:03]}  h6 {[%clk 0:01:58]} 24. Bg6 {[%clk 0:01:56]}  Qb7 {[%clk 0:01:45]} 25. Rad1 {[%clk 0:01:51]}  Rc5 {[%clk 0:01:40]} 26. Ne3 {[%clk 0:01:41]}  d5 {[%clk 0:01:40]} 27. b4 {[%clk 0:01:41]}  e4 {[%clk 0:01:36]} 28. Qb1 {[%clk 0:01:11]}  Rxc3 {[%clk 0:01:30]} 29. bxa5 {[%clk 0:01:10]}  Rc5 {[%clk 0:00:57]} 30. a4 {[%clk 0:01:07]}  b4 {[%clk 0:00:54]} 31. Nc2 {[%clk 0:00:52]}  Bf7 {[%clk 0:00:43]} 32. Bf5 {[%clk 0:00:39]}  b3 {[%clk 0:00:40]} 33. Nd4 {[%clk 0:00:39]}  b2 {[%clk 0:00:38]} 34. Nb5 {[%clk 0:00:32]}  Rxb5 {[%clk 0:00:30]} 35. axb5 {[%clk 0:00:32]}  Qxb5 {[%clk 0:00:31]} 36. Qa2 {[%clk 0:00:25]}  d4 {[%clk 0:00:29]} 37. Be6 {[%clk 0:00:26]}  e3 {[%clk 0:00:17]} 38. Rb1 {[%clk 0:00:21]}  e2 {[%clk 0:00:12]} 39. Rfe1 {[%clk 0:00:21]}  d3 {[%clk 0:00:12]} 40. Bxf7+ {[%clk 0:00:21]}  Rxf7 {[%clk 0:00:11]} 41. a6 {[%clk 0:00:21]}  Bd4 {[%clk 0:00:07]} 42. Qe6 {[%clk 0:00:16]}  d2 {[%clk 0:00:06]} 43. Qc8+ {[%clk 0:00:15]}  Kg7 {[%clk 0:00:05]} 44. Qg4+ {[%clk 0:00:14]}  Qg5 {[%clk 0:00:05]} 45. Qxd4+ {[%clk 0:00:14]}  Kh7 {[%clk 0:00:04]} 46. Qd3+ {[%clk 0:00:14]}  Kg7 {[%clk 0:00:03]} 47. Qc3+ {[%clk 0:00:14]}  Kh7 {[%clk 0:00:02]} 48. Rxb2 {[%clk 0:00:14]}  dxe1=Q+ {[%clk 0:00:01]} 49. Qxe1 {[%clk 0:00:15]} 1-0


[Site "https://www.chess.com"]

[Event "Titled Tuesday Blitz December 27 Late 2022"]
[White "Oparin, Grigoriy"]
[Black "Arnold, Ken"]
[WhiteFideId "24125890"]
[BlackFideId "2056836"]
[WhiteElo "2667"]
[BlackElo "2355"]
[Result "1-0"]
[Round "04"]
[TimeControl "180+2"]
[Date "2022.12.27"]
[WhiteClock "0:01:05"]
[BlackClock "0:00:02"]

1. e4 {[%clk 0:03:00]}  c6 {[%clk 0:03:00]} 2. Nc3 {[%clk 0:03:01]}  d5 {[%clk 0:03:00]} 3. Nf3 {[%clk 0:03:02]}  Bg4 {[%clk 0:02:54]} 4. h3 {[%clk 0:03:02]}  Bxf3 {[%clk 0:02:54]} 5. Qxf3 {[%clk 0:03:03]}  e6 {[%clk 0:02:52]} 6. Be2 {[%clk 0:03:03]}  Nf6 {[%clk 0:02:52]} 7. O-O {[%clk 0:03:04]}  dxe4 {[%clk 0:02:51]} 8. Nxe4 {[%clk 0:03:03]}  Nxe4 {[%clk 0:02:52]} 9. Qxe4 {[%clk 0:03:04]}  Nd7 {[%clk 0:02:50]} 10. d4 {[%clk 0:03:05]}  Nf6 {[%clk 0:02:49]} 11. Qe3 {[%clk 0:03:04]}  Be7 {[%clk 0:02:44]} 12. Bf3 {[%clk 0:03:04]}  O-O {[%clk 0:02:44]} 13. Rd1 {[%clk 0:03:05]}  Re8 {[%clk 0:02:40]} 14. b3 {[%clk 0:03:04]}  a5 {[%clk 0:02:40]} 15. a3 {[%clk 0:03:04]}  a4 {[%clk 0:02:38]} 16. b4 {[%clk 0:03:04]}  Nd5 {[%clk 0:02:37]} 17. Qd3 {[%clk 0:02:54]}  Bg5 {[%clk 0:02:32]} 18. c4 {[%clk 0:02:51]}  Nf4 {[%clk 0:02:09]} 19. Qe4 {[%clk 0:02:50]}  Ng6 {[%clk 0:02:07]} 20. Bb2 {[%clk 0:02:50]}  Bf6 {[%clk 0:02:03]} 21. Rd2 {[%clk 0:02:48]}  Nh4 {[%clk 0:02:01]} 22. Bg4 {[%clk 0:02:42]}  g6 {[%clk 0:01:59]} 23. Rad1 {[%clk 0:02:41]}  h5 {[%clk 0:01:57]} 24. Be2 {[%clk 0:02:40]}  Nf5 {[%clk 0:01:49]} 25. Qc2 {[%clk 0:02:32]}  Qe7 {[%clk 0:01:48]} 26. Bf3 {[%clk 0:02:26]}  Nh4 {[%clk 0:01:40]} 27. Be4 {[%clk 0:02:25]}  Red8 {[%clk 0:01:23]} 28. Re2 {[%clk 0:02:14]}  Qd7 {[%clk 0:01:10]} 29. Red2 {[%clk 0:01:34]}  Nf5 {[%clk 0:01:08]} 30. d5 {[%clk 0:01:28]}  Bxb2 {[%clk 0:01:06]} 31. dxc6 {[%clk 0:01:28]}  Qc7 {[%clk 0:00:44]} 32. cxb7 {[%clk 0:01:27]}  Rab8 {[%clk 0:00:41]} 33. Qxb2 {[%clk 0:01:15]}  Rxd2 {[%clk 0:00:37]} 34. Rxd2 {[%clk 0:01:16]}  Qf4 {[%clk 0:00:33]} 35. Bxf5 {[%clk 0:01:09]}  gxf5 {[%clk 0:00:26]} 36. Rd7 {[%clk 0:01:09]}  Qxc4 {[%clk 0:00:17]} 37. Qe5 {[%clk 0:01:05]}  Qc1+ {[%clk 0:00:02]} 38. Kh2 {[%clk 0:01:05]} 1-0


[Site "https://www.chess.com"]